{"text_format":"1","workbook":"xlsx","n_sheets":14,"sheets":["(公告)","(説明書)","入札伺","別紙－１","別紙－1－２","別紙－２","別紙－３","別添","別紙－４","別紙－５","別紙－６","別紙－７","別紙－７（参考様式）","別紙－８"],"not_rendered":{"charts":0,"images":0,"macros":1,"external_links":90,"defined_names":3252,"comments":1,"pivot_tables":0},"unopened":[],"bounds":{"document_bytes":16777216,"sheet_cells":100000,"rows_first":2000,"rows_last":500,"rows_between":2000,"halvings":0,"cell_chars":16384,"cell_head_chars":4096},"cells_cut":0,"cells_raw":0,"read":"whole","date_system":"1900"}

{"sheet":"(公告)","index":0,"n_rows":45,"n_cols":4,"rows_kept":45,"cut":false,"hidden":true,"merged":[]}
[null,null,null,"＊入札公告"]
[null,null,null,"１　競争入札に付する事項"]
[null,null,null,{"$f":"\" (1)　件　　名　　　\"&DBCS(#REF!)","v":{"$error":"#REF!"}}]
[null,null,null," (2)　仕　　様　　　入札説明書及び仕様書による。"]
[null,null,null,{"$f":"\" (3)　履行期間　　　\"&DBCS(#REF!)&\"　\"&DBCS(IF(#REF!<>\"\",#REF!,\"\"))","v":{"$error":"#REF!"}}]
[null,null,null,{"$f":"\" (4)　履行場所　　　\"&DBCS(#REF!)","v":{"$error":"#REF!"}}]
[null,null,null," (5)　入札方法　　　入札金額は総価を記載すること。"]
[null,null,null,"　　　　　　　　　　なお、落札決定に当たっては、入札書に記載された金額に当該金額の10パーセントに相当する額を加算した額（円未満の端数切り捨て）をもって落札価格とするので、入札者は、消費税等に係る課税事業者であるか免税事業者であるかを問わず、見積もった契約金額の１１０分の１００に相当する金額を入札書に記載すること。"]
[null,null,null," (6)　電子調達システムの利用　本案件は、電子調達システムで行う。なお、電子調達システムによりがたい者は、支出負担行為担当官に書面により申し出た場合に限り紙入札方式によることができる。"]
[]
[null,null,null,"２　競争参加資格"]
[null,null,null," (1)　予算決算及び会計令第７０条の規定に該当しない者であること。"]
[null,null,null,"　　　なお、未成年者、被保佐人又は被補助人であっても、契約締結のために必要な同意を得ている者は、同条中、特別な理由がある場合に該当する。"]
[null,null,null," (2)　予算決算及び会計令第７１条の規定に該当しない者であること。"]
[null,null,null," (3)　厚生労働省から指名停止の措置を受けている期間中の者でないこと。"]
[null,null,null,{"$f":"\" (4)　令和\"&DBCS(#REF!)&\"・\"&DBCS(#REF!)&\"・\"&DBCS(#REF!)&\"年度厚生労働省競争参加資格（全省庁統一資格）において、厚生労働省大臣官房会計課長から「\"&DBCS(#REF!)&\"」で\"&IF(COUNTA(#REF!)=4,\"「\"&#REF!&\"」、「\"&#REF!&\"」又は「\"&#REF!&\"」又は「\"&#REF!&\"」\",IF(COUNTA(#REF!)=3,\"「\"&#REF!&\"」、「\"&#REF!&\"」又は「\"&#REF!&\"」\",IF(COUNTA(#REF!)=2,\"「\"&#REF!&\"」、「\"&#REF!&\"」\",IF(COUNTA(#REF!)=1,\"「\"&#REF!&\"」\",\"\"))))&\"等級に格付けされ、東北地域の競争参加資格を有する者であること。\"","v":{"$error":"#REF!"}}]
[null,null,null," (5)　資格審査申請書に虚偽の事実を記載していないと認められる者であること。"]
[null,null,null," (6)　経営の状況又は信用度が極度に悪化していないと認められる者であること。"]
[null,null,null," (7)　労働関係法令を遵守していること。"]
[null,null,null," (8)　その他予算決算及び会計令第７３条の規定に基づき、支出負担行為担当官が定める資格を有する者であること。"]
[]
[null,null,null,"３　契約条項を示す場所等"]
[null,null,null," (1)　入札説明書の交付場所、契約条項を示す場所及び問い合わせ先等"]
[null,null,null,{"$f":"\"　　　〒030-8558　\"&#REF!","v":{"$error":"#REF!"}}]
[null,null,null,{"$f":"\"　　　\"&#REF!","v":{"$error":"#REF!"}}]
[null,null,null,{"$f":"\"      （担当者）　\"&#REF!&\"　　電話　017-734-4111 （内線） \"&#REF!","v":{"$error":"#REF!"}}]
[null,null,null," (2)　入札説明書の交付期限"]
[null,null,null,{"$f":"\"　　　\"&DBCS(#REF!&\" (\"&#REF!&\")　\"&IF(LEN(#REF!)=5,LEFT(#REF!,2),\" \"&LEFT(#REF!,1))&\"時\"&RIGHT(#REF!,2)&\"分\")","v":{"$error":"#REF!"}}]
[null,null,null," (3)　入札書の受領期限及び提出場所"]
[null,null,null,{"$f":"\"　　　\"&DBCS(#REF!&\" (\"&#REF!&\")　\"&IF(LEN(#REF!)=5,LEFT(#REF!,2),\" \"&LEFT(#REF!,1))&\"時\"&RIGHT(#REF!,2)&\"分まで (1) の場所\")","v":{"$error":"#REF!"}}]
[null,null,null," (4)　開札の日時及び場所"]
[null,null,null,{"$f":"\"　　　\"&DBCS(#REF!&\" (\"&#REF!&\")\"&\"　\"&IF(LEN(#REF!)=5,LEFT(#REF!,2),\" \"&LEFT(#REF!,1))&\"時\"&RIGHT(#REF!,2)&\"分\")","v":{"$error":"#REF!"}}]
[null,null,null,{"$f":"\"　　　\"&#REF!&\"　　\"&IF(#REF!<>0,#REF!,\"\")","v":{"$error":"#REF!"}}]
[]
[null,null,null,"４　その他"]
[null,null,null," (1)　契約手続きにおいて使用する言語及び通貨　日本語及び日本国通貨"]
[null,null,null," (2)　入札保証金及び契約保証金　免除"]
[null,null,null,{"$f":"\" (3)　入札者に要求される事項　この一般競争に参加を希望する者は、本公告に示した業務が履行できることを証明する書類を\"&DBCS(#REF!)&\"（\"&DBCS(#REF!)&\"）\"&DBCS(IF(MID(#REF!,2,1)=\":\",LEFT(#REF!,1),LEFT(#REF!,2))&\"時\"&RIGHT(#REF!,2))&\"分までに提出しなければならない。また、入札に参加を希望する者は、上記証明書類とあわせて暴力団等に該当しない旨の誓約書を提出しなければならない。\"","v":{"$error":"#REF!"}}]
[null,null,null,"　　　入札者は、支出負担行為担当官から当該書類に関し説明を求められた場合は、それに応じなければならない。"]
[null,null,null," (4)　入札の無効　本公告に示した競争参加資格のない者の提出した入札書、入札者に求められる義務を履行しなかった者の提出した入札書、その他入札の条件に違反した者の提出した入札書は無効とする。また、入札に参加した者が、⑶の誓約書を提出せず、又は虚偽の誓約をし、若しくは誓約書に反することとなったときは、当該者の入札を無効とするものとする。"]
[null,null,null," (5)　契約書作成の要否　要"]
[null,null,null,{"$f":"\" (6)　落札者の決定方法　本公告に示した業務を履行できると支出負担行為担当官が判断した入札者であって、予算決算及び会計令第７９条の規定に基づいて作成された予定価格の制限の範囲内で、最低価格をもって有効な入札を行った者を落札者とする。\"&IF(#REF!=\"該当\",\"なお、本件は、低入札価格調査制度を適用し、入札の結果、調査基準価格を下回る入札が行われた場合には、低入札価格調査を実施するため、調査基準価格を下回る入札を行った者は、事後の調査に協力する義務があるものとする。\",)","v":{"$error":"#REF!"}}]
[null,null,null," (7)　入札に参加を希望する者で、担当者等が入札書等必要な書類を提出した場合であっても、入札に参加を希望する者自身が当該入札への参加を決定したものとする。"]
[null,null,null," (8)　押印が省略された入札書等必要必要書類に虚偽記載等の不正が発覚した場合、契約解除や違約金を徴取する場合があり得る。"]
[null,null,null," (9)　その他　詳細は入札説明書による。"]

{"sheet":"(説明書)","index":1,"n_rows":174,"n_cols":4,"rows_kept":174,"cut":false,"hidden":true,"merged":[]}
[null,null,null,"＊入札説明書"]
[null,null,null,"２　競争に付する事項"]
[null,null,null,{"$f":"\"（１）件　　名　　\"&DBCS(#REF!)","v":{"$error":"#REF!"}}]
[null,null,null,"（２）仕 様 等　　別添仕様書による"]
[null,null,null,{"$f":"\"（３）履行期間　　\"&DBCS(#REF!)&\"　\"&DBCS(IF(#REF!<>\"\",#REF!,\"\"))","v":{"$error":"#REF!"}}]
[null,null,null,{"$f":"\"（４）履行場所　　\"&DBCS(#REF!)","v":{"$error":"#REF!"}}]
[null,null,null,"（５）入札方法"]
[null,null,null,"　　　落札者の決定は、一般競争入札（最低価格落札方式）をもって行うので、"]
[null,null,null,"　　①　入札者は、仕様書に定める業務の履行に要する一切の諸経費を含め、契約金額を見積もるものとする。"]
[null,null,null,"　　②　落札決定に当たっては、入札書に記載された金額に当該金額の10パーセントに相当する額を加算した金額（円未満の端数切捨て）をもって落札価格とするので、入札者は、消費税に係る課税事業者であるか免税事業者であるかを問わず、見積もった契約金額の１１０分の１００に相当する金額を記載した入札書を提出しなければならない。"]
[null,null,null,"（６）入札保証金及び契約保証金　　免除"]
[]
[null,null,null,"３　競争参加資格"]
[null,null,null,"（１）予算決算及び会計令第７０条及び第７１条に規定される次の事項に該当する者は、競争に参加する資格を有さない。"]
[null,null,null,"　　①　以下の各号のいずれかに該当する者"]
[null,null,null,"　　　ア　当該契約を締結する能力を有しない者（未成年者、被保佐人又は被補助人であっても、契約締結のために必要な同意を得ている者を除く。）"]
[null,null,null,"　　　イ　破産手続き開始の決定を受けて復権を得ない者"]
[null,null,null,"　　　ウ　暴力団員による不当な行為の防止等に関する法律（平成３年法律第７７号）第３２条第１項各号に掲げる者"]
[null,null,null,"　　②　以下の各号のいずれかに該当すると認められ、３年以内の期間を定めて、一般競争に参加させないこととした者（これを代理人、支配人その他の使用人として使用する者についてもまた同じ。）"]
[null,null,null,"　　　ア　契約の履行に当たり故意に工事、製造その他の役務を粗雑に行い、又は物件の品質若しくは数量に関して不正の行為をした者"]
[null,null,null,"　　　イ　公正な競争の執行を妨げた者又は公正な価格を害し若しくは不正の利益を得るために連合した者"]
[null,null,null,"　　　ウ　落札者が契約を結ぶこと又は契約者が契約を履行することを妨げた者"]
[null,null,null,"　　　エ　監督又は検査の実施に当たり職員の職務の執行を妨げた者"]
[null,null,null,"　　　オ　契約により、契約の後に代価の額を確定する場合において、当該代価の請求を故意に虚偽の事実に基づき過大な額で行った者"]
[null,null,null,"　　　カ　正当な理由がなくて契約を履行しなかった者"]
[null,null,null,"　　　キ　前各号のいずれかに該当する者を、契約の締結又は履行に当たり、代理人、支配人、その他の使用人として使用した者"]
[null,null,null,{"$f":"\"（２）令和\"&DBCS(#REF!)&\"・\"&DBCS(#REF!)&\"・\"&DBCS(#REF!)&\"年度厚生労働省競争参加資格（全省庁統一資格）において、厚生労働省大臣官房会計課長から「\"&DBCS(#REF!)&\"」で\"&IF(COUNTA(#REF!)=4,\"「\"&#REF!&\"」、「\"&#REF!&\"」又は「\"&#REF!&\"」又は「\"&#REF!&\"」\",IF(COUNTA(#REF!)=3,\"「\"&#REF!&\"」、「\"&#REF!&\"」又は「\"&#REF!&\"」\",IF(COUNTA(#REF!)=2,\"「\"&#REF!&\"」、「\"&#REF!&\"」\",IF(COUNTA(#REF!)=1,\"「\"&#REF!&\"」\",\"\"))))&\"等級に格付けされ、東北地域の競争参加資格を有する者であること。\"","v":{"$error":"#REF!"}}]
[null,null,null,"（３）次の事項に該当する者は、競争に参加することができない。"]
[null,null,null,"　　①　資格審査申請書又はその添付書類に虚偽の事実を記載した者"]
[null,null,null,"　　②　経営の状況又は信用度が極度に悪化している者"]
[null,null,null,"　　③　厚生労働省から指名停止の措置を受けている期間中の者でないこと。"]
[null,null,null,"（４）次の要件を満たす者であること。"]
[null,null,null,"　　①　次に掲げる制度が適用される者にあっては、この入札の入札書提出期限の直近２年間（オ及びカについては２保険年度）の保険料の滞納がない者であること。"]
[null,null,null,"　　　　　ア．厚生年金保険　　イ．健康保険（全国健康保険協会が管掌するもの）"]
[null,null,null,"　　　　　ウ．船員保険　　エ．国民年金　　オ．労働者災害補償保険　　カ．雇用保険"]
[null,null,null,"　　　　※　各保険料のうちオ及びカについては、当該年度における年度更新手続を完了すべき日が未到来の場合にあっては前年度及び前々年度、年度更新手続を完了すべき日以降の場合にあっては当該年度及び前年度の保険料について滞納がない（分納が認められているものについては納付期限が到来しているものに限る。）こと。"]
[null,null,null,"　　②　この入札の入札書提出期限の直近１年間において、厚生労働省が所管する法令に違反したことにより送検され、行政処分を受け、又は行政指導（行政機関から公表されたものに限る。）を受けた者にあっては本件業務の公正な実施又は本件業務に対する国民の信頼の確保に支障を及ぼすおそれがないこと。"]
[null,null,null,"　　　　※　これに該当すると思われる事実がある者は、あらかじめ４（２）②に照会すること。"]
[]
[null,null,null,"４　入札書の提出場所等"]
[null,null,null,"　　　本件入札は電子調達システムにより行う。入札は、システムに定める手続きに従い、提出期限までに入札書を提出しなければならない。"]
[null,null,null,{"$f":"\"　　　なお、紙による入札の参加を希望する場合は、\"&DBCS(#REF!)&\"（\"&DBCS(#REF!)&\"）\"&DBCS(IF(MID(#REF!,2,1)=\":\",LEFT(#REF!,1),LEFT(#REF!,2))&\"時\"&RIGHT(#REF!,2))&\"分までに別紙－３様式を提出すること。\"","v":{"$error":"#REF!"}}]
[null,null,null,"　　　入札者は、その提出した入札書の引換え、変更又は取消しをすることはできない。"]
[null,null,null,"（１）電子調達システムによる場合"]
[null,null,null,"　　　　入札書の提出期限"]
[null,null,null,{"$f":"\"　　　　　\"&DBCS(#REF!&\" (\"&#REF!&\")　\"&IF(LEFT(#REF!,2)=\":\",LEFT(#REF!,1),LEFT(#REF!,2))&\"時\"&RIGHT(#REF!,2)&\"分\")","v":{"$error":"#REF!"}}]
[null,null,null,"　　　　（通信状況により提出期限時間内に電子調達システムに入札書が到着しない場合があるので、余裕をもって行うこと。）"]
[null,null,null,"（２）紙による場合"]
[null,null,null,"　　①　入札書の受領期限"]
[null,null,null,{"$f":"\"　　　　　\"&DBCS(#REF!&\" (\"&#REF!&\")　\"&IF(LEFT(#REF!,2)=\":\",LEFT(#REF!,1),LEFT(#REF!,2))&\"時\"&RIGHT(#REF!,2)&\"分\")","v":{"$error":"#REF!"}}]
[null,null,null,"　　②　入札書の提出場所、契約条項を示す場所及び問い合わせ先"]
[null,null,null,{"$f":"\"　　　　　〒030-8558　\"&#REF!","v":{"$error":"#REF!"}}]
[null,null,null,{"$f":"\"　　　　　　\"&#REF!","v":{"$error":"#REF!"}}]
[null,null,null,{"$f":"\" 　　　     （担当者）　\"&#REF!&\"　　電話　017-734-4111 （内線） \"&#REF!","v":{"$error":"#REF!"}}]
[null,null,null,"　　③　入札書の提出方法"]
[null,null,null,"　　　　　入札書は別紙－１の様式にて作成、封筒に入れ封印し、かつ、その封皮に氏名（法人の場合はその名称又は商号）、宛名（支出負担行為担当官青森労働局総務部長殿）及び「令和●●年●●月●●日開札［調達件名を記入する］の入札書在中」と朱書きしなければならない。"]
[null,null,null,"　　　　　郵便（書留郵便に限る）により提出する場合は、封筒は二重封筒とし、表封筒に「令和●●年●●月●●日開札［調達件名を記入する］の入札書在中」の旨朱書し、中封筒の封皮には直接に提出する場合と同様に氏名等を記し、上記４（２）②あてに入札書の受領期限までに送付しなければならない。"]
[null,null,null,"（３）電話、電信等による提出は認めない。"]
[null,null,null,"（４）入札の無効"]
[null,null,null,"　　　本入札説明書に示した競争参加資格のない者、入札条件に違反した者又は入札者に求められる義務を履行しなかった者の提出した入札書は無効とする。"]
[null,null,null,"　　　また、入札に参加した者が別紙－７の誓約書を提出せず、又は虚偽の誓約をし、若しくは誓約書に反することとなったときは、当該者の入札を無効とするものとする。"]
[null,null,null,"（５）入札の延期等"]
[null,null,null,"　　　入札者が相連合し又は不穏の挙動をする等の場合であって、競争入札を公正に執行することができない状態にあると認められるときは、当該入札を延期し、又はこれを取り止めることがある。"]
[null,null,null,"（６）代理人による入札"]
[null,null,null,"　　①　代理人が電子調達システムにより入札する場合には、当該システムで定める委任の手続きを終了しておかなければならない。また、技術資料の提出等をシステム上において行う場合には、当初の手続きをする時点までに委任の手続きを完了させておくこと。"]
[null,null,null,"　　　　なお、電子調達システムによる入札においては、復代理人による応札は認めない。"]
[null,null,null,"　　②　代理人が紙により入札する場合には、入札書に競争参加者の氏名、名称又は商号、代理人であることの表示及び当該代理人の氏名を記入（外国人の署名を含む）しておくとともに、入札書提出時に別紙－２様式による代理委任状を提出しなければならない。"]
[null,null,null,"　　③　委任状の日付は、提出日を記入すること。"]
[null,null,null,"　　④　入札者又はその代理人は、本件調達に係る入札について他の入札者の代理人を兼ねることができない。"]
[]
[null,null,null,"５　開札"]
[null,null,null,"（１）開札の日時及び場所"]
[null,null,null,{"$f":"\"　　　\"&DBCS(#REF!&\" (\"&#REF!&\")　\"&IF(LEN(#REF!)=5,LEFT(#REF!,2),\" \"&LEFT(#REF!,1))&\"時\"&RIGHT(#REF!,2)&\"分\")","v":{"$error":"#REF!"}}]
[null,null,null,{"$f":"\"　　　\"&#REF!&\"　　\"&IF(#REF!<>0,#REF!,\"\")","v":{"$error":"#REF!"}}]
[null,null,null,"（２）電子調達システムによる入札の場合"]
[null,null,null,"　　　電子調達システムにより入札書を提出した場合には、開札場における立ち会いは不要であるが、入札者又はその代理人は、開札時刻には端末の前で待機し、同システムにより開札に立ち会うものとする。"]
[null,null,null,"（３）紙による入札の場合"]
[null,null,null,"　　①　開札は、入札者又はその代理人を立ち会わせて行う。ただし、入札者又はその代理人が立ち会わない場合は、入札事務に関係のない職員を立ち会わせて行う。"]
[null,null,null,"　　②　入札者又はその代理人は、開札時刻後においては、開札場に入場することはできない。"]
[null,null,null,"　　③　入札者又はその代理人は、開札場に入場しようとするときは、入札関係職員の求めに応じ競争参加資格を証明する書類、身分証明書又は入札権限に関する委任状（復代理人の場合）を提示又は提出しなければならない。"]
[null,null,null,"　　④　入札者又はその代理人は、支出負担行為担当官が特にやむを得ない事情があると認めた場合のほか、開札終了まで開札場を退場することができない。"]
[null,null,null,"（４）再度入札の取扱い"]
[null,null,null,"　　　開札をした場合において、入札者又はその代理人の入札のうち、予定価格の制限に達した価格の入札がないときは、速やか（再度入札決定から３開庁日以内）に再度入札を行う。"]
[null,null,null,"　　　なお、電子調達システムにおいては、再度入札通知書に示す時刻までに再度の入札を行うものとする。"]
[]
[null,null,null,"６　その他"]
[null,null,null,"（１）契約手続に使用する言語及び通貨　　日本語及び日本国通貨"]
[null,null,null,"（２）入札者に要求される事項"]
[null,null,null,"　　①　電子調達システムによる入札の場合"]
[null,null,null,{"$f":"\"　　　ア　この一般競争に電子調達システムによる入札参加を希望する者は、本入札説明書３の競争参加資格を有することを証明する書類等（別紙－５参照）をスキャナ等により電子データ化したものを、電子調達システムの手順に応じて\"&DBCS(#REF!&\"(\"&#REF!&\")\"&IF(LEN(#REF!)=5,LEFT(#REF!,2),\" \"&LEFT(#REF!,1))&\"時\"&RIGHT(#REF!,2)&\"分までに提出しなければならない。\")","v":{"$error":"#REF!"}}]
[null,null,null,"　　　　　競争参加資格等確認関係書類を電子データ化する際は、各項目別に一つのファイルを作成するものとする。また、電子調達システムはシステム上、一つのファイルしか送付できないため、作成した各項目別のファイルは、ＬＺＨ形式又はＺＩＰ形式にて圧縮の上、一つのファイルとして送付すること。"]
[null,null,null,"　　　　　なお、送付する際において、システム上、３メガバイト以上のファイルは送付できず、また、ファイルは一回しか送付できないので留意すること。"]
[null,null,null,"　　　イ　電子調達システムで入札参加をする場合であって、特段の事情により競争参加資格等確認関係書類を電子データ化することができない場合については同書類を紙によって提出することを認めるが、その場合であっても、別紙－４の「競争参加資格等確認関係書類の紙による提出について」はMS-Word（MS-Word2010又はそれ以下のバージョン）又は一太郎（一太郎Pro又はそれ以下のバージョン）で作成の上、電子調達システムにより提出すること。"]
[null,null,null,"　　　　　なお、本処理を行わない場合、同システムによる入札ができなくなるので留意すること。"]
[null,null,null,"　　②　紙による入札の場合"]
[null,null,null,{"$f":"\"　　　　この一般競争に紙による参加を希望する者は、本入札説明書３の競争参加資格を有することを証明する書類等（別紙－５参照）を\"&DBCS(#REF!&\"(\"&#REF!&\")\"&IF(LEN(#REF!)=5,LEFT(#REF!,2),\" \"&LEFT(#REF!,1))&\"時\"&RIGHT(#REF!,2)&\"分までに本入札説明書４（２）②に提出しなければならない。\")","v":{"$error":"#REF!"}}]
[null,null,null,"　　　　郵便（書留郵便に限る）により提出する場合は、封筒に「令和●●年●●月●●日開札［調達件名を記入する］の競争参加資格等確認関係書類在中」の旨朱書し、上記４（２）②あてに期限までに送付しなければならない。"]
[null,null,null,"　　　　なお、電話、電信等による提出は認めない。"]
[null,null,null,"　　③　入札に参加を希望する者は、上記証明書類とあわせて別紙－７の暴力団等に該当しない旨の誓約書を提出しなければならない。"]
[null,null,null,"　　④　開札日までの間において、支出負担行為担当官から前記①から③の書類等に関し説明を求められた場合には、これに応じなければならない。"]
[null,null,null,"（３）落札者の決定方法"]
[null,null,null,"　　　一般競争入札（最低価格落札方式）とする。"]
[null,null,null,{"$f":"\"　　①　本入札説明書４（１）又は（２）に従い入札書を提出した入札者であって、本入札説明書３の競争参加資格及び仕様書の要求要件をすべて満たし、当該入札者の入札価格が予算決算及び会計令第７９条の規定に基づいて作成された予定価格の制限の範囲内であり、かつ、最低価格をもって有効な入札を行った者を落札者とする。\"&IF(#REF!=\"該当\",\"なお、本件は、低入札価格調査制度を適用し、入札の結果、調査基準価格を下回る入札が行われた場合には、低入札価格調査を実施するため、調査基準価格を下回る入札を行った者は、事後の調査に協力する義務があるものとする。\",)","v":{"$error":"#REF!"}}]
[null,null,null,"　　②　落札者となるべき者が二人以上あるときは、直ちに当該入札者にくじを引かせ、落札者を決定するものとする。また、入札者又はその代理人が直接くじを引くことができないときは、入札事務に関係ない職員がこれに代わってくじを引き落札者を決定するものとする。"]
[null,null,null,"　　③　落札者が決定したときは、入札者にその氏名（法人の場合にはその名称）及び金額を口頭及び電子調達システムの落札通知書又は電話等により通知するものとする。"]
[null,null,null,"（４）契約書の作成"]
[null,null,null,"　　①　競争入札を執行し、契約の相手方を決定したときは、遅滞なく契約書を取り交わすものとする。"]
[null,null,null,"　　②　契約書を作成する場合において、契約の相手方が遠隔地にあるときは、まず、その者が契約書の案に記名押印し、更に支出負担行為担当官が当該契約書の案の送付を受けてこれに記名押印するものとする。"]
[null,null,null,"　　③　上記②の場合において支出負担行為担当官が記名押印したときは、当該契約書の１通を契約の相手方に送付するものとする。"]
[null,null,null,"　　④　支出負担行為担当官が契約の相手方とともに契約書に記名押印しなければ、本契約は確定しないものとする。"]
[null,null,null,{"$f":"\"　　⑤　契約締結日までに令和\"&DBCS(#REF!)&\"年度の予算（暫定予算を含む。）が成立しなかった場合、契約締結日は予算が成立した日以降とする。また、暫定予算になった場合、全体の契約期間に対する暫定予算の期間分のみの契約とする場合がある。\"","v":{"$error":"#REF!"}}]
[null,null,null,"（５）支払条件"]
[null,null,null,"　　　業務の履行が行われた後、適法な支払請求書を受理した日から３０日以内に契約金額を支払う。"]
[null,null,null,"（６）障害発生時及び電子調達システム操作等の問い合わせ先は次のとおりとする。"]
[null,null,null,"　　　・ヘルプデスク　　０５７０－０１４－８８９"]
[null,null,null,"　　　・ホームページ　　https://www.geps.go.jp/"]
[null,null,null,"　　　ただし、申請書類、応札の締め切り時間が切迫しているなど緊急を要する場合には、上記４（２）②へ連絡すること。"]
[null,null,null,"（７）入札参加にあたっての留意事項"]
[null,null,null,"　　①　入札方法について"]
[null,null,null,"　　　ア　入札は、入札説明書で定められた入札書により行うこと。"]
[null,null,null,"　　　イ　入札書に記載する住所、商号及び氏名並びに入札書に押す印鑑は、入札者があらかじめ届け出たものを用いること。"]
[null,null,null,"　　　ウ　担当者等が入札書等必要な書類を提出した場合であっても、入札に参加を希望する者自身が当該入札への参加を決定したものとする。"]
[null,null,null,"　　　エ　入札書の受領期限に遅れた入札は一切認めない。"]
[null,null,null,"　　②　次に掲げる入札は無効にすることがある。"]
[null,null,null,"　　　ア　入札書に記入がされていない入札"]
[null,null,null,"　　　イ　入札金額を訂正した入札"]
[null,null,null,"　　　ウ　金額の数字等が不明瞭な入札"]
[null,null,null,"　　　エ　入札書に単価、数量及び総価を記載することを求めた場合の入札書に計算誤りがある入札"]
[null,null,null,"　　　オ　その他、入札公告若しくは通知、当該入札説明書又は係官が指示した事項に違反した入札"]
[null,null,null,"　　③　違約金等について"]
[null,null,null,"　　　　落札した者が契約を締結しない場合、入札保証金を納めているときはそれが国庫に帰属し、入札保証金を納めていないときは入札金額の１００分の５に相当する金額を違約金として納めなければならない。"]
[null,null,null,"　　　　押印が省略された入札書等必要な書類に虚偽記載等の不正が発覚した場合は、契約解除や違約金を徴取する場合があり得る。"]
[]
[null,null,null,"　◎　様式等"]
[null,null,null,{"$f":"IF(#REF!<>0,IF(#REF!=0,REPT(\"　\",#REF!+4)&#REF!,\"　　\"&#REF!&\"　　\"&#REF!),\"\")","v":{"$error":"#REF!"}}]
[null,null,null,{"$f":"IF(#REF!<>0,IF(#REF!=0,REPT(\"　\",#REF!+4)&#REF!,\"　　\"&#REF!&\"　　\"&#REF!),\"\")","v":{"$error":"#REF!"}}]
[null,null,null,{"$f":"IF(#REF!<>0,IF(#REF!=0,REPT(\"　\",#REF!+4)&#REF!,\"　　\"&#REF!&\"　　\"&#REF!),\"\")","v":{"$error":"#REF!"}}]
[null,null,null,{"$f":"IF(#REF!<>0,IF(#REF!=0,REPT(\"　\",#REF!+4)&#REF!,\"　　\"&#REF!&\"　　\"&#REF!),\"\")","v":{"$error":"#REF!"}}]
[null,null,null,{"$f":"IF(#REF!<>0,IF(#REF!=0,REPT(\"　\",#REF!+4)&#REF!,\"　　\"&#REF!&\"　　\"&#REF!),\"\")","v":{"$error":"#REF!"}}]
[null,null,null,{"$f":"IF(#REF!<>0,IF(#REF!=0,REPT(\"　\",#REF!+4)&#REF!,\"　　\"&#REF!&\"　　\"&#REF!),\"\")","v":{"$error":"#REF!"}}]
[null,null,null,{"$f":"IF(#REF!<>0,IF(#REF!=0,REPT(\"　\",#REF!+4)&#REF!,\"　　\"&#REF!&\"　　\"&#REF!),\"\")","v":{"$error":"#REF!"}}]
[null,null,null,{"$f":"IF(#REF!<>0,IF(#REF!=0,REPT(\"　\",#REF!+4)&#REF!,\"　　\"&#REF!&\"　　\"&#REF!),\"\")","v":{"$error":"#REF!"}}]
[null,null,null,{"$f":"IF(#REF!<>0,IF(#REF!=0,REPT(\"　\",#REF!+4)&#REF!,\"　　\"&#REF!&\"　　\"&#REF!),\"\")","v":{"$error":"#REF!"}}]
[null,null,null,{"$f":"IF(#REF!<>0,IF(#REF!=0,REPT(\"　\",#REF!+4)&#REF!,\"　　\"&#REF!&\"　　\"&#REF!),\"\")","v":{"$error":"#REF!"}}]
[null,null,null,{"$f":"IF(#REF!<>0,IF(#REF!=0,REPT(\"　\",#REF!+4)&#REF!,\"　　\"&#REF!&\"　　\"&#REF!),\"\")","v":{"$error":"#REF!"}}]
[null,null,null,{"$f":"IF(#REF!<>0,IF(#REF!=0,REPT(\"　\",#REF!+4)&#REF!,\"　　\"&#REF!&\"　　\"&#REF!),\"\")","v":{"$error":"#REF!"}}]
[null,null,null,{"$f":"IF(#REF!<>0,IF(#REF!=0,REPT(\"　\",#REF!+4)&#REF!,\"　　\"&#REF!&\"　　\"&#REF!),\"\")","v":{"$error":"#REF!"}}]
[null,null,null,{"$f":"IF(#REF!<>0,IF(#REF!=0,REPT(\"　\",#REF!+4)&#REF!,\"　　\"&#REF!&\"　　\"&#REF!),\"\")","v":{"$error":"#REF!"}}]
[null,null,null,{"$f":"IF(#REF!<>0,IF(#REF!=0,REPT(\"　\",#REF!+4)&#REF!,\"　　\"&#REF!&\"　　\"&#REF!),\"\")","v":{"$error":"#REF!"}}]
[null,null,null,{"$f":"IF(#REF!<>0,IF(#REF!=0,REPT(\"　\",#REF!+4)&#REF!,\"　　\"&#REF!&\"　　\"&#REF!),\"\")","v":{"$error":"#REF!"}}]
[null,null,null,{"$f":"IF(#REF!<>0,IF(#REF!=0,REPT(\"　\",#REF!+4)&#REF!,\"　　\"&#REF!&\"　　\"&#REF!),\"\")","v":{"$error":"#REF!"}}]
[null,null,null,{"$f":"IF(#REF!<>0,IF(#REF!=0,REPT(\"　\",#REF!+4)&#REF!,\"　　\"&#REF!&\"　　\"&#REF!),\"\")","v":{"$error":"#REF!"}}]
[null,null,null,{"$f":"IF(#REF!<>0,IF(#REF!=0,REPT(\"　\",#REF!+4)&#REF!,\"　　\"&#REF!&\"　　\"&#REF!),\"\")","v":{"$error":"#REF!"}}]
[null,null,null,{"$f":"IF(#REF!<>0,IF(#REF!=0,REPT(\"　\",#REF!+4)&#REF!,\"　　\"&#REF!&\"　　\"&#REF!),\"\")","v":{"$error":"#REF!"}}]
[null,null,null,{"$f":"IF(#REF!<>0,IF(#REF!=0,REPT(\"　\",#REF!+4)&#REF!,\"　　\"&#REF!&\"　　\"&#REF!),\"\")","v":{"$error":"#REF!"}}]
[null,null,null,{"$f":"IF(#REF!<>0,IF(#REF!=0,REPT(\"　\",#REF!+4)&#REF!,\"　　\"&#REF!&\"　　\"&#REF!),\"\")","v":{"$error":"#REF!"}}]
[null,null,null,{"$f":"IF(#REF!<>0,IF(#REF!=0,REPT(\"　\",#REF!+4)&#REF!,\"　　\"&#REF!&\"　　\"&#REF!),\"\")","v":{"$error":"#REF!"}}]
[null,null,null,{"$f":"IF(#REF!<>0,IF(#REF!=0,REPT(\"　\",#REF!+4)&#REF!,\"　　\"&#REF!&\"　　\"&#REF!),\"\")","v":{"$error":"#REF!"}}]
[null,null,null,{"$f":"IF(#REF!<>0,IF(#REF!=0,REPT(\"　\",#REF!+4)&#REF!,\"　　\"&#REF!&\"　　\"&#REF!),\"\")","v":{"$error":"#REF!"}}]
[null,null,null,{"$f":"IF(#REF!<>0,IF(#REF!=0,REPT(\"　\",#REF!+4)&#REF!,\"　　\"&#REF!&\"　　\"&#REF!),\"\")","v":{"$error":"#REF!"}}]
[null,null,null,{"$f":"IF(#REF!<>0,IF(#REF!=0,REPT(\"　\",#REF!+4)&#REF!,\"　　\"&#REF!&\"　　\"&#REF!),\"\")","v":{"$error":"#REF!"}}]
[null,null,null,{"$f":"IF(#REF!<>0,IF(#REF!=0,REPT(\"　\",#REF!+4)&#REF!,\"　　\"&#REF!&\"　　\"&#REF!),\"\")","v":{"$error":"#REF!"}}]
[null,null,null,{"$f":"IF(#REF!<>0,IF(#REF!=0,REPT(\"　\",#REF!+4)&#REF!,\"　　\"&#REF!&\"　　\"&#REF!),\"\")","v":{"$error":"#REF!"}}]
[null,null,null,{"$f":"IF(#REF!<>0,IF(#REF!=0,REPT(\"　\",#REF!+4)&#REF!,\"　　\"&#REF!&\"　　\"&#REF!),\"\")","v":{"$error":"#REF!"}}]
[null,null,null,{"$f":"IF(#REF!<>0,IF(#REF!=0,REPT(\"　\",#REF!+4)&#REF!,\"　　\"&#REF!&\"　　\"&#REF!),\"\")","v":{"$error":"#REF!"}}]
[null,null,null,{"$f":"IF(#REF!<>0,IF(#REF!=0,REPT(\"　\",#REF!+4)&#REF!,\"　　\"&#REF!&\"　　\"&#REF!),\"\")","v":{"$error":"#REF!"}}]
[null,null,null,{"$f":"IF(#REF!<>0,IF(#REF!=0,REPT(\"　\",#REF!+4)&#REF!,\"　　\"&#REF!&\"　　\"&#REF!),\"\")","v":{"$error":"#REF!"}}]
[null,null,null,{"$f":"IF(#REF!<>0,IF(#REF!=0,REPT(\"　\",#REF!+4)&#REF!,\"　　\"&#REF!&\"　　\"&#REF!),\"\")","v":{"$error":"#REF!"}}]
[null,null,null,{"$f":"IF(#REF!<>0,IF(#REF!=0,REPT(\"　\",#REF!+4)&#REF!,\"　　\"&#REF!&\"　　\"&#REF!),\"\")","v":{"$error":"#REF!"}}]
[null,null,null,{"$f":"IF(#REF!<>0,IF(#REF!=0,REPT(\"　\",#REF!+4)&#REF!,\"　　\"&#REF!&\"　　\"&#REF!),\"\")","v":{"$error":"#REF!"}}]
[null,null,null,{"$f":"IF(#REF!<>0,IF(#REF!=0,REPT(\"　\",#REF!+4)&#REF!,\"　　\"&#REF!&\"　　\"&#REF!),\"\")","v":{"$error":"#REF!"}}]
[null,null,null,{"$f":"IF(#REF!<>0,IF(#REF!=0,REPT(\"　\",#REF!+4)&#REF!,\"　　\"&#REF!&\"　　\"&#REF!),\"\")","v":{"$error":"#REF!"}}]
[null,null,null,{"$f":"IF(#REF!<>0,IF(#REF!=0,REPT(\"　\",#REF!+4)&#REF!,\"　　\"&#REF!&\"　　\"&#REF!),\"\")","v":{"$error":"#REF!"}}]
[null,null,null,{"$f":"IF(#REF!<>0,IF(#REF!=0,REPT(\"　\",#REF!+4)&#REF!,\"　　\"&#REF!&\"　　\"&#REF!),\"\")","v":{"$error":"#REF!"}}]

{"sheet":"入札伺","index":2,"n_rows":9,"n_cols":7,"rows_kept":9,"cut":false,"hidden":true,"merged":[[5,1,5,7],[1,6,1,7],[4,1,4,6],[8,1,8,6]]}
["決裁ルート"]
["局長","総務部長","総務課長","課長補佐","１係長","１主任","１主任"]
["△",null,null,null,"△"]
[]
["件　名",{"$f":"#REF!&\"に係る一般競争入札の実施について\"","v":{"$error":"#REF!"}}]
["施行先"," （空白）"]
["施行者","支出負担行為担当官総務部長"]
[]
["伺い文","　標記について、別添（案）のとおり一般競争入札に付してよろしいかお伺いいたします。\n　併せて、予定価格を別添予定価格調書（案）のとおり作成してよろしいかお伺いいたします。\n\n※添付ファイルの「□」の部分はエクセルをＰＤＦに変換した際に文字化けしたものです。実際は、エクセルのデータを印刷し、使用します。"]

{"sheet":"別紙－１","index":3,"n_rows":29,"n_cols":13,"rows_kept":29,"cut":false,"hidden":false,"merged":[[20,5,20,6],[22,5,22,6],[0,12,0,13],[8,10,8,13],[2,0,2,13],[6,0,6,1],[5,3,5,4],[5,6,5,7],[6,3,6,4],[6,6,6,7],[10,2,10,12],[16,5,16,6],[18,5,18,6]]}
[null,null,null,null,null,null,null,null,null,null,null,null,"別紙－１"]
[]
["入　　札　　書"]
[]
["入札金額"]
[null,null,"億","千",null,"百","十",null,"万","千","百","十","円"]
["金　額"]
[]
[null,null,null,null,null,null,null,null,null,null,"（消費税を含まない。）"]
[]
[null,"件　名 ：","令和７年度 文房具等消耗品の購入（単価契約）〔電子入札対象案件〕"]
[]
[null,"上記のとおり入札説明書及び仕様書等を承諾のうえ入札します。"]
[]
[null,"　令和 　　年 　　月 　　日"]
[]
[null,null,null,null,null,"住    所"]
[]
[null,null,null,null,null,"商    号"]
[]
[null,null,null,null,null,"代 表 者"]
[]
[null,null,null,null,null,"代 理 人"]
[]
[null,"支出負担行為担当官"]
[null,"　青森労働局総務部長　殿"]
[]
["（注意）業務の履行に要する一切の諸経費を含め金額を見積もること。"]
["　　　　人件費には賃金・最低賃金上昇予定分を含め金額を見積もること。"]

{"sheet":"別紙－1－２","index":4,"n_rows":312,"n_cols":11,"rows_kept":312,"cut":false,"hidden":false,"merged":[[1,0,1,10],[2,0,2,10],[4,6,4,7],[4,8,4,10],[6,3,6,4],[7,0,28,0],[7,2,8,2],[9,2,14,2],[15,2,16,2],[17,2,18,2],[17,3,18,3],[19,2,20,2],[21,2,22,2],[23,2,24,2],[25,2,26,2],[29,0,78,0],[29,2,34,2],[29,3,31,3],[32,3,34,3],[35,2,40,2],[46,2,51,2],[46,3,51,3],[53,2,54,2],[55,2,56,2],[57,2,58,2],[59,2,62,2],[59,3,62,3],[35,3,37,3],[38,3,40,3],[42,2,43,2],[42,3,43,3],[44,2,45,2],[44,3,45,3],[66,2,67,2],[68,2,69,2],[70,2,71,2],[72,2,73,2],[74,2,77,2],[79,0,125,0],[79,2,82,2],[92,2,98,2],[111,2,112,2],[113,2,117,2],[96,3,98,3],[99,2,100,2],[102,2,105,2],[102,4,105,4],[106,2,107,2],[106,3,107,3],[79,3,82,3],[83,2,85,2],[83,3,85,3],[86,2,89,2],[86,3,89,3],[90,2,91,2],[113,3,117,3],[118,2,122,2],[118,3,122,3],[123,2,124,2],[209,2,211,2],[209,3,211,3],[191,2,193,2],[191,4,193,4],[160,2,161,2],[162,2,163,2],[164,2,165,2],[167,2,170,2],[171,2,173,2],[194,2,196,2],[174,2,175,2],[180,2,183,2],[185,2,187,2],[185,4,187,4],[188,2,190,2],[188,4,190,4],[273,0,280,0],[273,2,278,2],[194,4,196,4],[197,2,198,2],[197,3,198,3],[281,0,284,0],[126,0,232,0],[127,2,128,2],[129,2,130,2],[131,2,132,2],[135,2,136,2],[137,2,139,2],[220,2,224,2],[226,2,227,2],[229,2,230,2],[231,2,232,2],[171,4,173,4],[142,2,144,2],[145,2,147,2],[145,3,147,3],[148,2,153,2],[154,2,156,2],[157,2,158,2],[200,2,203,2],[238,3,241,3],[242,3,247,3],[248,3,254,3],[255,3,261,3],[262,3,267,3],[271,2,272,2],[233,0,272,0],[238,2,268,2],[212,2,214,2],[212,3,214,3],[215,2,217,2],[311,0,311,7],[311,8,311,9],[297,0,298,0],[299,0,305,0],[299,2,302,2],[303,2,305,2],[306,0,310,0],[306,2,310,2],[285,0,288,0],[289,0,290,0],[291,0,296,0],[293,2,296,2]]}
[null,null,null,null,null,null,null,null,null,null,"別紙－1－２"]
["入札金額内訳書"]
["令和７年度 文房具等消耗品の購入（単価契約）"]
[]
[null,null,null,null,null,null,"事業所名"]
[null,null,null,null,null,null,null,null,null,null,"（単位：円）"]
["区分","番号","品目","規格",null,"品番","メーカー","請求単位","見込\n所要数","単価〔税抜〕","金額〔税抜〕"]
["ノート\n・紙類",1,"ノートブック","B5　","普通罫線","ノ-3ANX10","コクヨ","1パック（10冊）",12]
[null,2,null,"A4　","普通罫線","ノ-203AN","コクヨ","1パック（10冊）",8]
[null,3,"付箋紙","75mm×25mm","４色","5001-K","３Ｍ","1箱（20冊）",62]
[null,4,null,"75mm×12.5mm","４色","5601-K","３Ｍ","1箱（20冊）",10]
[null,5,null,"75mm×50mm","黄色","6561-Y","３Ｍ","1箱（10冊）",68]
[null,6,null,"75mm×75mm","黄色","6541-Y","３Ｍ","1箱（10冊）",41]
[null,7,null,"50mm×15mm","（帯）色混","7001-R","３Ｍ","1箱（25冊）",10]
[null,8,null,"50mm×15mm","４色","7001-K","３Ｍ","1箱（25冊）",65]
[null,9,"ポスト・イットフラック゛","44ｍｍ×10ｍｍ","６色","6831M","３Ｍ","1箱（10個）",12]
[null,10,null,"44ｍｍ×6ｍｍ","９色","6801MS","３Ｍ","1箱（10個）",22]
[null,11,"ポスト・イットフラッグ\nインデックス","44ｍｍ×23ｍｍ","赤","682-1-RE","３Ｍ","1箱（2個×10パック）",7]
[null,12,null,null,"青","682-1-B","３Ｍ","1箱（2個×10パック）",9]
[null,13,"ポスト・イット強粘着ふせん","50mm×15mm","５色","700SS-NE","３Ｍ","1パック（5冊）",33]
[null,14,null,"50mm×50mm","５色","650-5SSAN","３Ｍ","1パック（5冊）",17]
[null,15,"綴込用紙Ａ　(黒表紙）","A4-S","２枚１組","ツ-7","コクヨ","1包(10冊)",3]
[null,16,null,"A4-E","２枚１組","ツ-17","コクヨ","1包(10冊)",3]
[null,17,"官庁表紙","A4(幅広）",null,"V2","飯島","1袋(100枚)",26]
[null,18,null,"A4(幅狭）",null,"V1","飯島","1袋(100枚)",17]
[null,19,"板目表紙","A3",null,"セイ-845N","コクヨ","1袋(100枚)",1]
[null,20,null,"A4",null,"セイ-835N","コクヨ","1袋(100枚)",10]
[null,21,"証拠書類編綴用厚紙","A4",null,"HSKｱｲﾎﾞﾘｰN 22.5kg","平和紙業","1袋(100枚)",17]
[null,22,"マルチプリンタ帳票複写タイプ","A4白紙","１面　穴なし","FSCF2000","ヒサゴ","１冊(100枚)",1]
["筆記具・\n修正用品",23,"ノック式油性ボールペン","極細0.5mm","黒 ","SN-10005","ミツビシ","1箱（10本）",24]
[null,24,null,null,"赤　","SN-10005","ミツビシ","1箱（10本）",16]
[null,25,null,null,"青　","SN-10005","ミツビシ","1箱（10本）",1]
[null,26,null,"0.7mm","黒","SN-10007","ミツビシ","1箱（10本）",24]
[null,27,null,null,"赤","SN-10007","ミツビシ","1箱（10本）",11]
[null,28,null,null,"青","SN-10007","ミツビシ","1箱（10本）",5]
[null,29,"ゲルインキボールペン\n(ノック式）　","極細0.38mm","黒 ","UMN-103","ミツビシ","1箱（10本）",26]
[null,30,null,null,"赤","UMN-103","ミツビシ","1箱（10本）",24]
[null,31,null,null,"ブルーブラック","UMN-103","ミツビシ","1箱（10本）",6]
[null,32,null,"0.5mm","黒 ","UMN-105EW","ミツビシ","1箱（10本）",16]
[null,33,null,null,"赤","UMN-105EW","ミツビシ","1箱（10本）",10]
[null,34,null,null,"青","UMN-105EW","ミツビシ","1箱（10本）",1]
[null,35,"多色ボールペン",null,"黒・赤・青","BC-TRC20","トンボ","1箱（10本）",1]
[null,36,"サインペン","プチ中字　(線幅0.7mm）","黒","SEG-10M","パイロット","1箱（10本）",9]
[null,37,null,null,"赤","SEG-10M","パイロット","1箱（10本）",9]
[null,38,"油性ツインマーカー\n（マジック）","極細細字","黒","MO-120-MC-BK","ゼブラ","1箱（10本）",12]
[null,39,null,null,"赤","MO-1２0-MC-R","ゼブラ","1箱（10本）",2]
[null,40,"蛍光ペン","ﾂｲﾝﾀｲﾌﾟ","ピンク","WKCR1","ゼブラ","1箱（10本）",30]
[null,41,null,null,"オレンジ","WKCR1","ゼブラ","1箱（10本）",19]
[null,42,null,null,"イエロー","WKCR1","ゼブラ","1箱（10本）",64]
[null,43,null,null,"グリーン","WKCR1","ゼブラ","1箱（10本）",17]
[null,44,null,null,"ブルー","WKCR1","ゼブラ","1箱（10本）",10]
[null,45,null,null,"パープル","WKCR1","ゼブラ","1箱（10本）",6]
[null,46,"シャープペン","グリップつき",null,"M5-100　黒","ミツビシ","1箱（10本）",22]
[null,47,"シャープペン　替芯","HB","黒","ULS0540HB","ミツビシ","1箱（10個）",3]
[null,48,null,"B","黒","ULS0540B","ミツビシ","1箱（10個）",2]
[null,49,"えんぴつ ","HB","黒","8900-HB","トンボ","1箱（12本）",9]
[null,50,null,"B","黒","8900-B","トンボ","1箱（12本）",2]
[null,51,"色えんぴつ",null,"朱","№2351","ミツビシ","1箱（12本）",1]
[null,52,null,null,"だいだい","K880.4","ミツビシ","1箱（12本）",8]
[null,53,"ホワイトボードマーカー","線幅約2mm","黒","PM-B102ND","コクヨ","1本",12]
[null,54,null,null,"青","PM-B102NB","コクヨ","1本",7]
[null,55,null,null,"赤","PM-B102NR","コクヨ","1本",6]
[null,56,null,null,"緑","PM-B102NG","コクヨ","1本",7]
[null,57,"ホワイトボード用イレイザー　　 ","W140・D64・H48","青","RA-11NB","コクヨ","1個",1]
[null,58,"MONO消しゴム（小）","17×43×11㎜",null,"PE-01A","トンボ","1パック（40個）",7]
[null,59,"修正液","油性水性両用　細先端",null,"XEZL31W","ぺんてる","1箱（10個）",1]
[null,60,"修正テープ","2.5㎜×5ｍ",null,"CT-PXN25","トンボ","1箱（10個）",2]
[null,61,null,"4mm×5ｍ",null,"CT-PXN4","トンボ","1箱（10個）",5]
[null,62,"修正テープカートリッジ","2.5㎜×5ｍ",null,"CT-PR25","トンボ","1箱（10個）",3]
[null,63,null,"4mm×5ｍ",null,"CT-PR4","トンボ","1箱（10個）",7]
[null,64,"ポストイット・カバーアップテープ（カッターつき）","8.4mm×17.7ｍ","白","652N","３Ｍ","1個",5]
[null,65,null,"25.4mm×17.7ｍ","白","658N","３Ｍ","1個",6]
[null,66,"ポストイット・カバーアップテープ（詰替用）","8.4mm×17.7ｍ","白","652R","３Ｍ","1個",11]
[null,67,null,"25.4mm×17.7ｍ","白","658R","３Ｍ","1個",11]
[null,68,"ポスト・イット目かくし用テープ","5㎜×10ｍ","黒","ＭＫ６－５","３Ｍ","1パック（6巻）",1]
[null,69,null,"8.5㎜×10ｍ","黒","ＭＫ６－８","３Ｍ","1パック（6巻）",1]
[null,70,null,"12㎜×10ｍ","黒","ＭＫ６－１２","３Ｍ","1パック（6巻）",1]
[null,71,null,"24ミリ×10ｍ","黒","ＭＫ－６－２４","３Ｍ","1パック（6巻）",1]
[null,72,"マイタック®目かくしラベル","13㎜×105㎜","5片×6シート","ML-MK11","ニチバン","1箱（10冊）",1]
["ファイル",73,"フラットファイル　　","背幅18mm","ピンク","フ-V10","コクヨ","1袋（10冊）",30]
[null,74,null,null,"イエロー","フ-V10","コクヨ","1袋（10冊）",55]
[null,75,null,null,"ブルー","フ-V10","コクヨ","1袋（10冊）",38]
[null,76,null,null,"コバルトブルー","フ-V10","コクヨ","1袋（10冊）",24]
[null,77,"フラットファイル","背幅18mm","グリーン","フ-V10","コクヨ","1袋（10冊）",41]
[null,78,null,null,"グレー","フ-V10","コクヨ","1袋（10冊）",54]
[null,79,null,null,"パープル","フ-V10","コクヨ","1袋（10冊）",34]
[null,80,"フラットファイル\n（厚とじ）","背幅28mm","ピンク","フ-W10","コクヨ","1袋（10冊）",25]
[null,81,null,null,"イエロー","フ-W10","コクヨ","1袋（10冊）",44]
[null,82,null,null,"ブルー","フ-W10","コクヨ","1袋（10冊）",43]
[null,83,null,null,"グリーン","フ-W10","コクヨ","1袋（10冊）",84]
[null,84,"ファイルボックス","高さ260・幅317・背幅102","イエロー","A4-LFBN-Y","コクヨ","1袋（5箱）",7]
[null,85,null,"高さ312・幅264・背幅102","ブルー","フ－E450B","コクヨ","1袋（5箱）",2]
[null,86,"ガバットファイル",null,"グレー","フ-90M","コクヨ","1箱（10冊）",26]
[null,87,null,null,"ブルー","フ-90B","コクヨ","1箱（10冊）",34]
[null,88,null,null,"ピンク","フ-90P","コクヨ","1箱（10冊）",20]
[null,89,null,"ひも付き","グレー","フ-H90M","コクヨ","1箱（10冊）",4]
[null,90,null,"ストロングタイプ","グレー","フ-S90M","コクヨ","1箱（10冊）",7]
[null,91,null,null,"ブルー","フ-S90B","コクヨ","1箱（10冊）",1]
[null,92,null,null,"ピンク","フ-S90P","コクヨ","1箱（10冊）",1]
[null,93,"リングファイル","A4縦（背幅56mm）","青","フ-440NB","コクヨ","1箱4冊",3]
[null,94,null,"A4縦（背幅45mm）","青","フ-430NB","コクヨ","1箱4冊",1]
[null,95,"スーパードッチファイル（脱・着）","A4縦（背幅46mm）","両開き、青","2473GXA","キングジム","1箱（10冊）",1]
[null,96,"スーパードッチファイル\n（脱・着）","A4縦（背幅66mm）","両開き、青","2475GXA","キングジム","1箱（10冊）",3]
[null,97,null,"A4縦（背幅96mm）",null,"2478GXA","キングジム","1箱（10冊）",12]
[null,98,null,"A4縦（背幅116mm）",null,"2470A","キングジム","1箱（10冊）",2]
[null,99,null,"A4横（背幅96㎜）",null,"2488A","キングジム","1箱（10冊）",2]
[null,100,"パンチレスファイル","A4-S\n（適正収容枚数　コピー用紙約160枚）","赤","F367","LIHITLAB.","1箱（10冊）",1]
[null,101,null,null,"青","F367","LIHITLAB.","1箱（10冊）",1]
[null,102,"カラー仕切カード","A4-S","１組１０山見出し","シキ-130N","コクヨ","1袋（5組）",17]
[null,103,"クリヤホルダー","A4","透明","735N100","キングジム","1袋(100枚)",28]
[null,104,"PPクリヤホルダー","A4（見出し付）","透明（見出し部青）","CF-33 135-71","ライオン","1袋(10枚)",2]
[null,105,"PPポケットホルダー","Ａ４（見出し、マチ（20㎜）つき）","透明","LFS-12PH 137-79","ライオン","1袋（5枚）",5]
[null,106,null,"A4","透明","LFS-02PH 137-69","ライオン","1袋（5枚）",3]
[null,107,"クリヤーケース（マチ付）","A4","藍","F-74SM","LIHITLAB.","1枚",1]
[null,108,null,null,"緑","F-74SM","LIHITLAB.","1枚",1]
[null,109,null,null,"黄","F-74SM","LIHITLAB.","1枚",1]
[null,110,null,null,"赤","F-74SM","LIHITLAB.","1枚",1]
[null,111,null,null,"白","F-74SM","LIHITLAB.","1枚",1]
[null,112,"クリヤーケース（ヨコ型）","A4","藍","F-74S","LIHITLAB.","1枚",1]
[null,113,null,null,"緑","F-74S","LIHITLAB.","1枚",1]
[null,114,null,null,"黄","F-74S","LIHITLAB.","1枚",1]
[null,115,null,null,"赤","F-74S","LIHITLAB.","1枚",1]
[null,116,null,null,"白","F-74S","LIHITLAB.","1枚",1]
[null,117,"クリップボード","A4S","青","ヨハ-H73NB","コクヨ","1箱（10冊）",1]
[null,118,null,"A4（カバー付き）","青","ヨハ-50B","コクヨ","1箱（10冊）",1]
[null,119,"クリアーブック替紙","A4タテ",null,"ラ－680N","コクヨ","1パック（10枚）",7]
["事務用品",120,"ハサミ","刃渡り65mm","ブルー","SC-165S 34-380","プラス","1個",15]
[null,121,"カッター","刃幅9mm",null,"188BSY","オルファ","1個",4]
[null,122,null,"刃幅18mm",null,"11BS","オルファ","1個",1]
[null,123,"カッター替刃","刃幅9mm","５０枚","SB50K","オルファ","1個",1]
[null,124,null,"刃幅18mm","５０枚","LB50K","オルファ","1個",1]
[null,125,"定規","30cm",null,"№10 270-04","ライオン","1個",1]
[null,126,null,"15cm",null,"CL-R15","コクヨ","1個",5]
[null,127,"プラスチック画鋲","ダルマタイプ","５色","カヒ-S20","コクヨ","1箱(120本）",1]
[null,128,"強力マグネットバー","長さ30ｃｍ","クリア","マク-Ｔ203NB","コクヨ","1本",1]
[null,129,"カラーマグネット","直径30㎜（超強力)","４個　ブルー","マク-1030NTB","コクヨ","1パック",1]
[null,130,null,"直径30㎜（超強力)","４個　透明","マク-1030NＴ","コクヨ","1パック",7]
[null,131,"マグネットクリップ","小（31㎜）","黒","クリ-65ND","コクヨ","1箱（10個）",1]
[null,132,null,"中（36㎜）","黒","クリ-64ND","コクヨ","1箱（10個）",2]
[null,133,null,"大（44㎜）","黒","クリ-63ND","コクヨ","1箱（10個）",1]
[null,134,"マグネットフック",null,null,"H3040 194-094","ニトムズ","1パック（2個）",1]
[null,135,"ステープラー（ホッチキス）","とじ枚数20枚ﾌﾗｯﾄｸﾘﾝﾁ",null,"HD10DFL","MAX","1個",18]
[null,136,"ホッチキス針","10号針（5mm）",null,"№10-1M","MAX","1箱（20個）",48]
[null,137,null,"3号針（6mm）",null,"№3-1M","MAX","1箱（10個）",1]
[null,138,null,"3号針（10mm）",null,"№3-10㎜","MAX","1箱（10個）",1]
[null,139,"針なしステープラー","ハリナックスプレス","青","SLN-MPH105B","コクヨ","1個",1]
[null,140,null,null,"緑","SLN-MPH105G","コクヨ","1個",1]
[null,141,null,null,"ピンク","SLN-MPH105P","コクヨ","1個",1]
[null,142,"ダブルクリップ　","超特大（口幅50mm）","ブラック","CP-101 35-440","プラス","1箱（10個）",5]
[null,143,null,"特大(口幅41mm）","ブラック","CP-102 35-459","プラス","1箱（10個）",10]
[null,144,null,"大(口幅32mm）","ブラック","KUWC1","クツワ","1箱（10個）",15]
[null,145,null,"中(口幅25mm）","ブラック","KUWC2","クツワ","1箱（10個）",21]
[null,146,null,"小（口幅19mm）","ブラック","KUWC3","クツワ","1箱（10個）",15]
[null,147,null,"小小(口幅15mm）","ブラック","KUWC4","クツワ","1箱（10個）",42]
[null,148,"ゼムクリップ　","ジャンボ",null,"ｸﾘー10","コクヨ","1箱(100本）",1]
[null,149,null,"大",null,"ｸﾘー1-1","コクヨ","1箱(100本）",30]
[null,150,null,"小",null,"ｸﾘー3-10","コクヨ","1箱(1,000本）",8]
[null,151,"スライドクリップ","L",null,"B002J-50 145-024","ジョインテックス","1箱(50個)",1]
[null,152,null,"S",null,"B001J-100 145-020","ジョインテックス","1箱(100個)",1]
[null,153,"スーパークリップ",null,null,"SC-800/BOX","OHTO","1箱(100個)",81]
[null,154,"ガチャック","中","アオ","GS-500","OHTO","1個",1]
[null,155,null,"大","アオ","ＧL－600","OHTO","1個",1]
[null,156,"ガチャックかえ玉\n(ガチャ玉）　　　　　","中",null,"GGS-8","OHTO","1箱（100個）",1]
[null,157,null,"大",null,"GGL-10","OHTO","1箱（100個）",1]
[null,158,"輪ゴム","内径38㎜、切幅1.1㎜",null,"№16","オーバンド","1箱（100ｇ）",12]
[null,159,null,"内径101.5㎜、切幅6㎜",null,"№420","オーバンド","1袋（1㎏）",3]
[null,160,"メクール","11g",null,"KM-501AS 35-973","プラス","1個",6]
[null,161,"メクリッコ","LL",null,"KM-404 44-768","プラス","1箱（20個）",4]
[null,162,null,"L",null,"KM-403 44-773","プラス","1箱（20個）",14]
[null,163,null,"M",null,"KM-402 44-771","プラス","1箱（20個）",23]
[null,164,null,"S",null,"KM-401 44-769","プラス","1箱（20個）",8]
[null,165,"メクリン","L","ブルー","メク-522TB","コクヨ","1箱（20個）",15]
[null,166,null,"M",null,"メク-521TB","コクヨ","1箱（20個）",19]
[null,167,null,"S",null,"メク-520TB","コクヨ","1箱（20個）",13]
[null,168,"スティックのり","40g",null,"YS-35-10S","ヤマト","1箱（10本）",12]
[null,169,null,"22g",null,"YS-22-10S","ヤマト","1箱（10本）",20]
[null,170,"液体のり","50mℓ",null,"E-NA-150","ヤマト","1本",39]
[null,171,"テープのり","8.4mm幅",null,"PN-MS8.4","トンボ","1パック(10個）",7]
[null,172,"テープのり\n詰め替え用カートリッジ","貼るタイプ　　8.4ｍｍ",null,"PR-MS8.4","トンボ","1パック(10個）",23]
[null,173,"瞬間接着剤","2g","ハイスピードEX","タ-592N","コクヨ","1本",7]
[null,174,"綴りひも","45cmうるし先",null,"ツ‐121","コクヨ","1束(100本）",2]
[null,175,null,"45cmセル先",null,"ツーE100","コクヨ","1束(100本）",11]
[null,176,null,"60cmセル先",null,"ツー155","コクヨ","1束(100本）",25]
[null,177,null,"70ｃｍセル先",null,"ツー157","コクヨ","1束（20本）",1]
[null,178,"白元結",null,null,null,"マルアイ","１束(400本,670mm）",1]
[null,179,"タックインデックス","小(18×25ｍｍ）","赤","タ-20R","コクヨ","1箱（20袋）",4]
[null,180,null,"中(23×29ｍｍ）",null,"タ-21R","コクヨ","1箱（20袋）",4]
[null,181,null,"大(27×34ｍｍ）",null,"タ-22R","コクヨ","1箱（20袋）",1]
[null,182,"タックインデックス\n保護フィルム付","小(18×25ｍｍ）","赤","タ-120R","コクヨ","1箱（10袋）",1]
[null,183,null,"中(23×29ｍｍ）",null,"タ-121R","コクヨ","1箱（10袋）",1]
[null,184,null,"大(27×34ｍｍ）",null,"タ-122R","コクヨ","1箱（10袋）",1]
[null,185,"タックインデックス","小(18×25ｍｍ）","青","タ-20B","コクヨ","1箱（20袋）",15]
[null,186,null,"中(23×29ｍｍ）",null,"タ-21B","コクヨ","1箱（20袋）",14]
[null,187,null,"大(27×34ｍｍ）",null,"タ-22B","コクヨ","1箱（20袋）",4]
[null,188,"タックインデックス\n保護フィルム付","小(18×25ｍｍ）","青","タ-120B","コクヨ","1箱（10袋）",2]
[null,189,null,"中(23×29ｍｍ）",null,"タ-121B","コクヨ","1箱（10袋）",2]
[null,190,null,"大(27×34ｍｍ）",null,"タ-122B","コクヨ","1箱（10袋）",1]
[null,191,"ビニールパッチ","標準サイズ","白","穴6mm　タ-1","コクヨ","1箱（20袋）",1]
[null,192,null,null,"透明","穴6mm　タ-3N","コクヨ","1箱（20袋）",1]
[null,193,"シールはがし","強力タイプ",null,"TW-P202N","コクヨ","1本",1]
[null,194,"朱肉　　","大（75号）",null,"MG-75EC","シャチハタ","1個",6]
[null,195,null,"中（60号）",null,"MG-60EC","シャチハタ","1個",14]
[null,196,null,"小（50号）",null,"MG-50EC","シャチハタ","1個",6]
[null,197,null,"携帯用（40号）",null,"MG-40EC","シャチハタ","1個",1]
[null,198,"朱の油",null,null,"OG-20","シャチハタ","1個",13]
[null,199,"捺印マット","100×210mm",null,"IP-902N","コクヨ","1枚",3]
[null,200,"印鑑ホルダー","はん蔵","黒","HLD-2.24","uni","1個",14]
[null,201,"印鑑ホルダー専用朱肉",null,null,"HLS-2","uni","1パック（2個）",72]
[null,202,"はんこブラシ",null,null,"GF-024","サンビー","1個",2]
[null,203,"スタンプ台　　　　","中型","黒","HGN-2-K","シャチハタ","1個",13]
[null,204,null,null,"藍","HGN-2-B","シャチハタ","1個",13]
[null,205,null,null,"赤","HGN-2-R","シャチハタ","1個",21]
[null,206,"スタンプ台　補充インキ","HGN用　40mℓ","黒","SGN-40K","シャチハタ","1個",6]
[null,207,null,null,"藍","SGN-40B","シャチハタ","1個",5]
[null,208,null,null,"赤","SGN-40R","シャチハタ","1個",6]
[null,209,"Xスタンパー用　補充インキ","0.3mℓ","朱","XLR-11Nシュ","シャチハタ","1パック（5本）",8]
[null,210,null,"20mℓ","赤","ＸＬＲ－２０Ｎアカ","シャチハタ","１個",1]
[null,211,null,"20mℓ","藍","ＸＬＲ－２０Ｎアイ","シャチハタ","１個",1]
[null,212,"シャチハタ用補充インキ","ネーム9専用　　","朱","XLR-9N","シャチハタ","1ﾊﾟｯｸ(2個）",29]
[null,213,"ナンバリング用インキ","黒インク　20ｍℓ",null,"IJ-900 30-796","プラス","1個",2]
[null,214,"回転印（日付印）","欧文日付　2号（5連）",null,"NFD-2G","シャチハタ","1個",1]
[null,215,null,"欧文日付　3号(5連）","ゴシック体","NFD3G","シャチハタ","1個",2]
[null,216,null,"欧文日付　4号(5連）","ゴシック体","NFD4G","シャチハタ","1個",4]
[null,217,null,"欧文日付　5号(5連）","ゴシック体","NFD5G","シャチハタ","1個",5]
[null,218,null,"6号(3連）","ゴシック体","NFD36G","シャチハタ","1個",1]
[null,219,"エンドレススタンプ　数字","4号",null,"IS-104","コクヨ","1個",1]
[null,220,"セロテープ","18mm",null,"CT405AP-18","ニチバン","１ﾊﾟｯｸ（10巻）",47]
[null,221,null,"24mm",null,"CT405AP-24","ニチバン","１ﾊﾟｯｸ（5巻）",18]
[null,222,"テープカッター",null,"青","T-M12NＢ","コクヨ","1個",2]
[null,223,"両面テープ","15㎜×20m",null,"NW15","ニチバン","1個",9]
[null,224,null,"20㎜×10m",null,"NW20","ニチバン","1個",7]
[null,225,"製本テープ\n（Ａ４カットタイプ）","幅35mm×297mm","黒","セホ-135D","コクヨ","１ﾊﾟｯｸ（10枚入）",22]
[null,226,null,"幅35mm×297mm","紺","BKL-3519","ニチバン","１ﾊﾟｯｸ（10枚入）",3]
["事務機器",227,"スーパーパンチ（2穴）","穴あけ枚数45枚　ダブルゲージ付き",null,"SD-WJ45-B","カール","1個",9]
[null,228,"強力パンチ","穴あけ枚数165枚　ダブルゲージ付き",null,"№122N","カール","1個",1]
[null,229,"強力パンチ替刃",null,null,"K-122","カール","1本",4]
[null,230,"強力パンチ刃受け",null,null,"K-10","カール","1パック（10個）",5]
[null,231,"カバーフィルム","50mm×10m",null,"CF-T50","ニチバン","1本",14]
[null,232,"テプラＰＲＯテープ","6mm","透明","ST6K","キングジム","1箱（5個）",4]
[null,233,null,null,"黄色","SC6Y","キングジム","1箱（5個）",1]
[null,234,null,null,"青","SC6B","キングジム","1箱（5個）",1]
[null,235,null,null,"白","SS6K","キングジム","1箱（5個）",2]
[null,236,null,"9mm","透明","ST9K","キングジム","1箱（5個）",5]
[null,237,null,null,"黄色","SC9Y","キングジム","1箱（5個）",1]
[null,238,null,null,"青","SC9B","キングジム","1箱（5個）",1]
[null,239,null,null,"白","SS9K","キングジム","1箱（5個）",3]
[null,240,null,null,"ピンク","SC9P","キングジム","1箱（5個）",1]
[null,241,null,null,"オレンジ","SC9D","キングジム","1箱（5個）",1]
[null,242,null,"12mm","透明","ST12K","キングジム","1箱（5個）",2]
[null,243,null,null,"黄色","SC12Y","キングジム","1箱（5個）",1]
[null,244,null,null,"青","SC12B","キングジム","1箱（5個）",1]
[null,245,null,null,"白","SS12K","キングジム","1箱（5個）",17]
[null,246,null,null,"ピンク","SC12P","キングジム","1箱（5個）",1]
[null,247,null,null,"オレンジ","SC12D","キングジム","1箱（5個）",1]
[null,248,null,null,"赤","SC12R","キングジム","1箱（5個）",3]
[null,249,null,"18mm","透明","ST18K","キングジム","1箱（5個）",1]
[null,250,null,null,"黄色","SC18Y","キングジム","1箱（5個）",1]
[null,251,null,null,"青","SC18B","キングジム","1箱（5個）",1]
[null,252,null,null,"白","SS18K","キングジム","1箱（5個）",7]
[null,253,null,null,"ピンク","SC18P","キングジム","1箱（5個）",1]
[null,254,null,null,"オレンジ","SC18D","キングジム","1箱（5個）",1]
[null,255,null,null,"赤","SC18R","キングジム","1箱（5個）",1]
[null,256,null,"24mm","透明","ST24K","キングジム","1箱（5個）",1]
[null,257,null,null,"黄色","SC24Y","キングジム","1箱（5個）",1]
[null,258,null,null,"青","SC24B","キングジム","1箱（5個）",1]
[null,259,null,null,"白","SS24K","キングジム","1箱（5個）",4]
[null,260,null,null,"オレンジ","SC24D","キングジム","1箱（5個）",1]
[null,261,null,null,"赤","SC24R","キングジム","1箱（5個）",1]
[null,262,null,"36mm","白","SS36K","キングジム","1箱（5個）",1]
[null,263,"電卓","幅140×奥行197×高さ26.5mm","12桁","EL-S752K","シャープ","1台",11]
[null,264,"タイトルブレーン\nインクリボンカセット","3個パック",null,"NS-TBR1D-3","コクヨ","1箱(3個)",12]
[null,265,"パウチフィルム","診察券サイズ",null,"MSP-F70100Ｎ","コクヨ","1箱(100枚)",1]
[null,266,null,"A4",null,"MSP-15F220307Ｎ","コクヨ","1箱(100枚)",1]
["用紙類",267,"レーザープリンタ用\nラベルシート","A4・24面",null,"LBP-A694","コクヨ","1ﾊﾟｯｸ（20枚）",6]
[null,268,null,"A4・20面",null,"LBP-A693","コクヨ","1ﾊﾟｯｸ（20枚）",5]
[null,269,null,"A4・14面",null,"LBP-F7163-20N","コクヨ","1ﾊﾟｯｸ（20枚）",1]
[null,270,null,"A4・12面",null,"LBP-A692","コクヨ","1ﾊﾟｯｸ（20枚）",89]
[null,271,null,"A4・10面",null,"LBP-A691","コクヨ","1ﾊﾟｯｸ（20枚）",30]
[null,272,null,"A4・カットなし",null,"LBP-A690","コクヨ","1ﾊﾟｯｸ（20枚）",28]
[null,273,"名刺用紙","A4・10面",null,"KPC-VE15W","コクヨ","1ﾊﾟｯｸ（1,000枚）",21]
[null,274,"ボイスコール用\n感熱ロール紙",null,null,"RS-100","明光商会","1箱（３０巻）",1]
["PC周辺\n機器",275,"エアダスター","350mℓ",null,"EAS-CL-A5","コクヨ","1本",7]
[null,276,"オフィスクリーナー","140㎜×200mm（50枚）",null,"OC-80WN","３Ｍ","1個",1]
[null,277,"オフィスクリーナー 詰替","140㎜×200mm（50枚）",null,"OC-80WRN","３Ｍ","1袋",46]
[null,278,"マウスパッド","180×150㎜","パステルブルー","MPD-OP54BLN","サンワサプライ","1枚",4]
["記録\nメディア",279,"ＣＤ－Ｒ","700MB",null,"SR80PP10","マクセル","1ﾊﾟｯｸ（10枚）",4]
[null,280,"ＤＶＤ－Ｒ","4.7GB　",null,"DHR47JPP10","マクセル","１パック（10枚）",4]
[null,281,"ＢＤ-Ｒ","25GB","ホワイト（レーベル印刷対応）","DBR25RPP10","マクセル ","１パック（10枚）",1]
[null,282,"ＵＳＢメモリ","8GB","スライド式","TC1418GR01 726-722","トランセンド　","1個",3]
["梱包用品",283,"クラフトテープ","幅50㎜×長さ50ｍ",null,"B012J(175-116)","ジョインテックス　","1巻",21]
[null,284,"布テープ","幅50㎜×長さ25ｍ",null,"B530J(365-234)","ジョインテックス","1巻",64]
["梱包用品",285,"スズランテープ","470ｍ",null,"24201010 433-123","シーアイサンプラス","1巻",20]
[null,286,"紙ひも","100ｍ",null,"カヒ-10 256-904","マルアイ","1巻",11]
[null,287,"クラフト封筒","角2",null,"RC100%ｸﾗﾌﾄ180-307","キングコーポレーション","1袋（100枚）",1]
[null,288,null,"長3",null,"RC100%ｸﾗﾌﾄ181-308","ｷﾝｸﾞコーポレーション","1袋（100枚）",31]
[null,289,null,"長4",null,"RC100%ｸﾗﾌﾄ181-404","ｷﾝｸﾞコーポレーション","1袋（100枚）",11]
[null,290,null,"長3","窓付き・テープなし","RC100%120127","ｷﾝｸﾞコーポレーション","1袋（100枚）",1]
["名札",291,"リール式吊下げ名札",null,"黒","NF-418D","ソニック","1個",168]
[null,292,"キーホルダー名札・大","5色アソート・30個",null,"GP-661","ソニック","1箱（30個）",1]
["収納用品",293,"デスクトレー","A4　水色",null,"G8300-14","LIHITLAB.","1個",10]
[null,294,null,"A4　ベージュ",null,"G8300-16","LIHITLAB.","1個",2]
[null,295,null,"A4 　黄緑",null,"G8300-6","LIHITLAB.","1個",5]
[null,296,null,"B4サイズ　","黒","A-332KB","LIHITLAB.","1個",2]
[null,297,"ブックエンド","高212×幅150㎜","特大　ライトグレー","BS-35NM","コクヨ","1組",9]
[null,298,null,"高200×幅140㎜","大　ライトグレー","BS-34NM","コクヨ","1組",6]
[null,299,null,"高190×幅280㎜","ワイドサイズ　ライトグレー","BS-39NM","コクヨ","1組",1]
["電池",300,"アルカリ乾電池","単1",null,"LR20(T)2PY*5","マクセル","1箱（10個）",1]
[null,301,null,"単2",null,"LR14(T)2PY*5","マクセル","1箱（10個）",2]
[null,302,null,"単3",null,"LR6(T)4P*10","マクセル","1箱(40個）",10]
[null,303,null,"単4",null,"LR03(T)4P*10","マクセル","1箱(40個）",4]
[null,304,null,"9Ｖ形",null,"6LF22T1B","マクセル","1個",1]
["※電子入札の場合は、電子調達システム入力の際、この内訳書をＰＤＦファイル等により添付してください。\n※紙入札の場合は、この内訳書をA４サイズ両面印刷で入札書に添付（同封）してください。\n※計算誤りが無いように注意してください。",null,null,null,null,null,null,null,"合計（税抜）"]

{"sheet":"別紙－２","index":5,"n_rows":30,"n_cols":10,"rows_kept":30,"cut":false,"hidden":false,"merged":[[2,0,2,9],[11,0,11,9],[13,0,13,1],[13,3,13,9],[4,0,4,1],[5,0,5,2],[5,3,5,5],[4,2,4,5],[9,7,9,8],[5,8,5,9]]}
[null,null,null,null,null,null,null,null,null,"別紙－２"]
[]
["委　 任　 状"]
[]
["（住所）"]
["私は、（氏名）",null,null,null,null,null,null,null,"　を代理人と定め"]
[]
["下記事項の入札及び見積りに関する一切の権限を委任します。"]
[]
[null,null,null,null,null,null,null,"受任者印"]
[]
["記"]
[]
["（委任事項）",null,null,"令和７年度 文房具等消耗品の購入（単価契約）〔電子入札対象案件〕"]
[]
["　　令和 　　年 　　月 　　日"]
[]
[null,null,null,null,"住    所"]
[]
[null,null,null,null,"商    号"]
[]
[null,null,null,null,"代 表 者"]
[]
["　支出負担行為担当官"]
["　　青森労働局総務部長　　殿"]
[]
[]
[]
[]
["（注意）　入札書提出時に提出すること。日付は、提出日を記入すること。"]

{"sheet":"別紙－３","index":6,"n_rows":25,"n_cols":5,"rows_kept":25,"cut":false,"hidden":false,"merged":[[21,0,21,4],[2,3,2,4],[10,0,10,4],[12,0,12,4],[14,0,14,4],[16,1,16,4],[4,0,4,2]]}
[null,null,null,null,"別紙－３"]
[]
[null,null,null,"令和　　年　　月　　日"]
[]
["　　支出負担行為担当官\n　　　青森労働局総務部長　　殿"]
[]
[null," 　　　　　　　　 住        所"]
[null," 　　　　　　　　 商号又は名称"]
[null," 　　　　　　　　 代 表 者 氏 名"]
[]
["電子入札案件の紙入札方式での参加について"]
[]
["　貴部局発注の下記入札案件について、電子調達システムを利用して入札に参加できないので、紙入札方式での参加をいたします。"]
[]
["記"]
[]
["１　入札案件名","令和７年度 文房具等消耗品の購入（単価契約）〔電子入札対象案件〕"]
[]
["２　電子調達システムでの参加ができない理由"]
["　（記入例）"]
["　　・認証カードの申請中だが、手続きが遅れているため"]
[]
["３　紙入札業者登録内容（別添「紙入札業者登録票」のとおり）"]
["　※電子入札システムに登録する必要があるため、すべて記入すること（⑦及び⑯については、該当な"]
["　　き場合は省略可）。"]

{"sheet":"別添","index":7,"n_rows":25,"n_cols":2,"rows_kept":25,"cut":false,"hidden":false,"merged":[[2,0,2,1]]}
[null,"（別添）"]
[]
["紙　入　札　業　者　登　録　票"]
[]
["①　資格審査登録番号"]
["②　企業名称"]
["④　所在地"]
["⑤　代表者職名"]
["⑥　代表者氏名"]
["⑦　部署名"]
["⑧　代表者電話番号"]
["⑨　代表者ＦＡＸ番号"]
["⑩　連絡先名称"]
["⑪　連絡先氏名"]
["⑫　連絡先郵便番号"]
["⑬　連絡先住所"]
["⑭　連絡先電話番号"]
["⑮　連絡先ＦＡＸ番号"]
["⑯　連絡先メールアドレス"]
[]
[]
["※　電子入札システムでの参加業者については、提出は不要。"]
["※「資格審査登録番号」には、資格審査結果通知書（全省庁統一資格）の「業者コー"]
["　ド」を記入すること。"]
["※「部署名」は、代表者の所属部署が特段ない場合には空欄でもよい。"]

{"sheet":"別紙－４","index":8,"n_rows":36,"n_cols":5,"rows_kept":36,"cut":false,"hidden":false,"merged":[[2,3,2,4],[4,0,4,2],[10,0,10,4],[12,0,12,4]]}
[null,null,null,null,"別紙－４"]
[]
[null,null,null,"令和　　年　　月　　日"]
[]
["　　支出負担行為担当官\n　　　青森労働局総務部長　　殿"]
[]
[null," 　　　　　　　　 住        所"]
[null," 　　　　　　　　 商号又は名称"]
[null," 　　　　　　　　 代 表 者 氏 名"]
[]
["競争参加資格等確認関係書類の紙による提出について"]
[]
["　令和７年２月２７日開札の「令和７年度 文房具等消耗品の購入（単価契約）〔電子入札対象案件〕」に係る競争参加資格等確認関係書類については、令和 　 年  　月 　 日 紙媒体により提出いたします。"]
[]
[]
[]
[]
[]
[]
[]
[]
[]
[]
[]
[]
[]
[]
[]
[]
[]
[]
[]
[]
["（注意）　電子調達システムで入札参加をする場合であって、かつ別紙－５の競争参加資格等確認関係"]
["　　　　書類を紙によって提出する場合のみこの様式を電子調達システムにより提出すること。"]
["　　　　　なお、処理を行わない場合、同システムによる入札ができなくなるので、留意すること。"]

{"sheet":"別紙－５","index":9,"n_rows":21,"n_cols":1,"rows_kept":21,"cut":false,"hidden":false,"merged":[]}
["別紙－５"]
[]
["競争参加資格等確認関係書類"]
[]
["　以下１～５の書類を入札説明書６（２）で定める期限までに提出してください。"]
[]
["１　厚生労働省大臣官房会計課長から通知された資格審査結果通知書（全省庁統一資格）の写し"]
[]
["２　自己申告書（別紙－６）"]
[]
["３　誓約書（別紙－７）"]
["　　※　個人の場合は裏面を記載すること。"]
["　　※　法人の場合は役員の氏名及び生年月日が明らかとなる資料（エクセル等で任意様式にて"]
["　　　作成したもので可）を添付すること。"]
[]
["４　保険料納付に係る申立書（別紙－８）"]
[]
["５　その他参考資料　会社履歴書又はこれに類する書類（例：会社概要、パンフレット）"]
["　　※　任意提出。支出負担行為担当官の求めに応じ提出すること。"]
[]
["※　提出部数　　　　　　各１部"]

{"sheet":"別紙－６","index":10,"n_rows":34,"n_cols":1,"rows_kept":34,"cut":false,"hidden":false,"merged":[]}
["別紙－６"]
[]
["自己申告書"]
[]
["　下記の内容について誓約いたします。"]
["　なお、この誓約書に虚偽があったことが判明した場合、又は報告すべき事項を報告しなかった"]
["ことが判明した場合には、本契約を解除されるなど当方が不利益を被ることとなっても、異議は"]
["一切申し立てません。"]
[]
["記"]
[]
["１　厚生労働省から指名停止の措置を受けている期間中でないこと。"]
["２　過去１年以内に、当社又はその役員若しくは使用人が、業務に関し、厚生労働省所管法令違"]
["　反により行政処分を受け又は送検されていないこと。"]
["３　事業の実施に当たっては、各種法令を遵守すること。"]
["４　契約締結後、当社又はその役員若しくは使用人が、業務に関し、厚生労働省所管法令違反に"]
["　より行政処分を受け又は送検された場合には、速やかに報告すること。"]
["５　前記１から４について、本契約について当社が再委託を行った場合の再委託先についても同"]
["　様であること。"]
[]
[]
[]
[]
[]
["令和　　年　　月　　日　　"]
[]
["　　　　　　　　　　　　　　住　　　　所"]
[]
["　　　　　　　　　　　　　　商号又は名称"]
[]
["　　　　　　　　　　　　　　代 表 者 氏 名　　　　　　　　　　　　　　　　　　　　　"]
[]
["支出負担行為担当官"]
["　青森労働局総務部長　　殿"]

{"sheet":"別紙－７","index":11,"n_rows":44,"n_cols":4,"rows_kept":44,"cut":false,"hidden":false,"merged":[[5,1,6,1],[5,2,6,2],[5,3,6,3],[19,1,19,2],[20,1,20,2]]}
["別紙－７","別紙－７（裏面）"]
[]
["誓 約 書"]
[]
[]
["　□　私","役　　職　　名","氏　　　　　名"]
["　□　当社"]
["は、下記１及び２のいずれにも該当しません。また、将来においても該当することはありません。",null,null," 明治        生 年 月 日"]
["　この誓約書が虚偽であり、又はこの誓約に反したことにより、当方が不利益を被ることとなっても、",null,null," 大正"]
["異議は一切申し立てません。",null,null," 昭和"]
["　また、当方の個人情報を警察に提供することについて同意します。",null,null," 平成　　　年 　　月 　　日"]
[]
["記"," 上記について、相違ないことを認めます。"]
[]
["１　契約の相手方として不適当な者"]
["（１）法人等（個人、法人又は団体をいう。）の役員等（個人である場合はその者、法人である場合は"]
["　　役員又は支店若しくは営業所（常時契約を締結する事務所をいう。）の代表者、団体である場合は"," 令和 　　年 　　月 　　日"]
["　　代表者、理事等、その他経営に実質的に関与している者をいう。）が、暴力団（暴力団員による不"]
["　　当な行為の防止等に関する法律（平成３年法律第77号）第２条第２号に規程する暴力団をいう。以"]
["　　下同じ。）又は暴力団員（同法第２条第６号に規定する暴力団員をいう。以下同じ。）であるとき","　　　　　　　住所（又は所在地）"]
["（２）役員等が、自己、自社若しくは第三者の不正の利益を図る目的又は第三者に損害を加える目的を","　　　　　　　社名及び代表者名"]
["　　もって、暴力団又は暴力団員を利用するなどしているとき"]
["（３）役員等が、暴力団又は暴力団員に対して、資金等を供給し、又は便宜は供与するなど直接的ある"]
["　　いは積極的に暴力団の維持、運営に協力し、若しくは関与しているとき"]
["（４）役員等が、暴力団又は暴力団員であることを知りながらこれを不当に利用するなどしているとき","※個人の場合、役職名の記載は不要。"]
["（５）役員等が、暴力団又は暴力団員と社会的に非難されるべき関係を有しているとき"]
[]
["２　契約の相手方として不適当な行為をする者"]
["（１）暴力的な要求行為を行う者"]
["（２）法的な責任を超えた不当な要求行為を行う者"]
["（３）取引に関して脅迫的な言動をし、又は暴力を用いる行為を行う者"]
["（４）偽計又は威力を用いて契約担当官等の業務を妨害する行為を行う者"]
["（５）その他前各号に準ずる行為を行う者"]
[]
[]
["令和　　年 　　月 　　日"]
[]
["　　　　　　　住所（又は所在地）"]
["　　　　　　　社名及び代表者名　　　　　　　　　　　　　　　　　　　　　　　"]
[]
[]
["　※代表者の氏名及び生年月日等を裏面に記載すること。"]
["　※法人の場合は役員の氏名及び生年月日が明らかとなる資料（エクセル等で任意様式にて作成したも"]
["　ので可）を添付すること。"]

{"sheet":"別紙－７（参考様式）","index":12,"n_rows":26,"n_cols":5,"rows_kept":26,"cut":false,"hidden":false,"merged":[[21,1,22,2],[21,4,22,4],[23,1,24,2],[23,4,24,4],[25,1,26,2],[25,4,26,4],[15,1,16,2],[15,4,16,4],[17,1,18,2],[17,4,18,4],[19,1,20,2],[19,4,20,4],[9,1,10,2],[9,4,10,4],[11,1,12,2],[11,4,12,4],[13,1,14,2],[13,4,14,4],[7,1,8,2],[7,4,8,4],[0,1,0,4],[1,1,1,4],[3,2,3,3],[5,1,6,2],[5,4,6,4]]}
[null,"【添付書類の参考様式】"]
[null,"役　員　等　名　簿"]
[]
[null,"法人名："]
[]
[null,"役職名",null,"（フリガナ）","生年月日"]
[null,null,null,"氏名"]
[1]
[]
[2]
[]
[3]
[]
[4]
[]
[5]
[]
[6]
[]
[7]
[]
[8]
[]
[9]
[]
[10]

{"sheet":"別紙－８","index":13,"n_rows":24,"n_cols":1,"rows_kept":24,"cut":false,"hidden":false,"merged":[]}
["別紙－８"]
[]
["保険料納付に係る申立書"]
[]
["　当社は、直近２年間に支払うべき社会保険料（厚生年金保険、健康保険（全国健康保険協会管"]
["掌のもの）、船員保険及び国民年金の保険料をいう。）及び直近２保険年度に支払うべき労働保"]
["険料（労働者災害補償保険及び雇用保険の保険料をいう。）について、一切滞納がないことを申"]
["し立てます。"]
["　なお、この申立書に虚偽内容が認められたときは、履行途中にあるか否かを問わず当社に対す"]
["る一切の契約が解除され、損害賠償金を請求され、併せて競争参加資格の停止処分を受けること"]
["に異議はありません。"]
["　また、当該保険料の納付事実を確認するために関係書類の提示・提出を求められたときは、速"]
["やかに対応することを確約いたします。"]
[]
["令和　　年　　月　　日　　"]
[]
["　　　　　　　　　　　　　　住　　　　所"]
[]
["　　　　　　　　　　　　　　商号又は名称"]
[]
["　　　　　　　　　　　　　　代 表 者 氏 名　　　　　　　　　　　　　　　　　　　　　"]
[]
["支出負担行為担当官"]
["　青森労働局総務部長　　殿"]